[Event "Titled Tuesday Blitz May 10 Late 2022"]
[White "Olenik Campa, Rudi"]
[Black "Voiteanu, Gabriel"]
[WhiteFideId "14633264"]
[BlackFideId "1208810"]
[WhiteElo "2076"]
[BlackElo "2001"]
[Result "0-1"]
[Round "05"]
[TimeControl "180+1"]
[Date "2022.05.11"]
[WhiteClock "0:00:02"]
[BlackClock "0:00:27"]

1. e4 {[%clk 0:03:00]}  e5 {[%clk 0:02:33]} 2. Ne2 {[%clk 0:03:00]}  Nf6 {[%clk 0:02:32]} 3. Nbc3 {[%clk 0:02:55]}  Nc6 {[%clk 0:02:32]} 4. g3 {[%clk 0:02:55]}  Bc5 {[%clk 0:02:32]} 5. Bg2 {[%clk 0:02:55]}  O-O {[%clk 0:02:31]} 6. O-O {[%clk 0:02:55]}  d6 {[%clk 0:02:32]} 7. d3 {[%clk 0:02:55]}  Bg4 {[%clk 0:02:30]} 8. h3 {[%clk 0:02:53]}  Bh5 {[%clk 0:02:30]} 9. g4 {[%clk 0:02:53]}  Bg6 {[%clk 0:02:28]} 10. Ng3 {[%clk 0:02:54]}  Nd4 {[%clk 0:02:25]} 11. Na4 {[%clk 0:02:50]}  Ne6 {[%clk 0:02:22]} 12. Nxc5 {[%clk 0:02:49]}  dxc5 {[%clk 0:02:23]} 13. Ne2 {[%clk 0:02:44]}  Nd4 {[%clk 0:02:20]} 14. Be3 {[%clk 0:02:43]}  h5 {[%clk 0:02:09]} 15. g5 {[%clk 0:02:41]}  Ne8 {[%clk 0:02:07]} 16. h4 {[%clk 0:02:42]}  f5 {[%clk 0:01:58]} 17. c3 {[%clk 0:02:36]}  Nxe2+ {[%clk 0:01:52]} 18. Qxe2 {[%clk 0:02:35]}  Qe7 {[%clk 0:01:36]} 19. exf5 {[%clk 0:02:34]}  Rxf5 {[%clk 0:01:31]} 20. Bxb7 {[%clk 0:02:27]}  Rd8 {[%clk 0:01:28]} 21. Be4 {[%clk 0:02:26]}  Nd6 {[%clk 0:01:06]} 22. Bxc5 {[%clk 0:02:18]}  Rf4 {[%clk 0:01:06]} 23. f3 {[%clk 0:01:28]}  Bxe4 {[%clk 0:00:57]} 24. dxe4 {[%clk 0:01:28]}  Rxh4 {[%clk 0:00:56]} 25. Qg2 {[%clk 0:01:16]}  Rf8 {[%clk 0:00:53]} 26. Rad1 {[%clk 0:01:09]}  Rff4 {[%clk 0:00:52]} 27. Bf2 {[%clk 0:01:05]}  Rhg4 {[%clk 0:00:47]} 28. fxg4 {[%clk 0:01:02]}  Rxg4 {[%clk 0:00:47]} 29. Bg3 {[%clk 0:00:56]}  Qxg5 {[%clk 0:00:42]} 30. Rf3 {[%clk 0:00:44]}  h4 {[%clk 0:00:40]} 31. Re1 {[%clk 0:00:34]}  hxg3 {[%clk 0:00:38]} 32. Rfe3 {[%clk 0:00:29]}  Qh4 {[%clk 0:00:33]} 33. R1e2 {[%clk 0:00:16]}  Nf7 {[%clk 0:00:32]} 34. Rd2 {[%clk 0:00:14]}  Ng5 {[%clk 0:00:31]} 35. Rd8+ {[%clk 0:00:13]}  Kh7 {[%clk 0:00:31]} 36. Kf1 {[%clk 0:00:11]}  Rf4+ {[%clk 0:00:31]} 37. Ke2 {[%clk 0:00:10]}  Rf2+ {[%clk 0:00:29]} 38. Qxf2 {[%clk 0:00:07]}  gxf2 {[%clk 0:00:30]} 39. Rd1 {[%clk 0:00:04]}  Nh3 {[%clk 0:00:27]} 40. Rh1 {[%clk 0:00:02]}  Nf4+ {[%clk 0:00:27]} 0-1


[Site "https://www.chess.com"]

[Event "Titled Tuesday Blitz May 10 Late 2022"]
[White "Pap, Gyula"]
[Black "Martinez Reyes, Pedro Ramon"]
[WhiteFideId "725323"]
[BlackFideId "3901807"]
[WhiteElo "2553"]
[BlackElo "2410"]
[Result "1-0"]
[Round "05"]
[TimeControl "180+1"]
[Date "2022.05.10"]
[WhiteClock "0:02:04"]
[BlackClock "0:00:50"]

1. e4 {[%clk 0:03:00]}  c5 {[%clk 0:02:59]} 2. Nc3 {[%clk 0:02:59]}  Nc6 {[%clk 0:02:58]} 3. Bb5 {[%clk 0:02:58]}  g6 {[%clk 0:02:54]} 4. f4 {[%clk 0:02:56]}  Bg7 {[%clk 0:02:52]} 5. Nf3 {[%clk 0:02:56]}  Nd4 {[%clk 0:02:52]} 6. Bd3 {[%clk 0:02:56]}  d6 {[%clk 0:02:51]} 7. O-O {[%clk 0:02:55]}  Bg4 {[%clk 0:02:49]} 8. Be2 {[%clk 0:02:54]}  Nxe2+ {[%clk 0:02:47]} 9. Qxe2 {[%clk 0:02:55]}  Nf6 {[%clk 0:02:47]} 10. h3 {[%clk 0:02:54]}  Bxf3 {[%clk 0:02:46]} 11. Rxf3 {[%clk 0:02:55]}  O-O {[%clk 0:02:46]} 12. d3 {[%clk 0:02:56]}  Nd7 {[%clk 0:02:40]} 13. Bd2 {[%clk 0:02:54]}  Qb6 {[%clk 0:02:38]} 14. Rb1 {[%clk 0:02:39]}  c4+ {[%clk 0:02:37]} 15. Kh1 {[%clk 0:02:38]}  cxd3 {[%clk 0:02:37]} 16. cxd3 {[%clk 0:02:38]}  Qa6 {[%clk 0:02:30]} 17. a3 {[%clk 0:02:35]}  Rac8 {[%clk 0:02:23]} 18. Nd5 {[%clk 0:02:34]}  Rfe8 {[%clk 0:02:20]} 19. Bc3 {[%clk 0:02:34]}  Bxc3 {[%clk 0:02:14]} 20. Nxc3 {[%clk 0:02:34]}  Nc5 {[%clk 0:02:10]} 21. Rbf1 {[%clk 0:02:32]}  Ne6 {[%clk 0:02:09]} 22. Qf2 {[%clk 0:02:32]}  Nc5 {[%clk 0:02:07]} 23. d4 {[%clk 0:02:26]}  Na4 {[%clk 0:01:50]} 24. f5 {[%clk 0:02:27]}  Nxc3 {[%clk 0:01:41]} 25. bxc3 {[%clk 0:02:28]}  Rf8 {[%clk 0:01:39]} 26. fxg6 {[%clk 0:02:26]}  hxg6 {[%clk 0:01:38]} 27. h4 {[%clk 0:02:23]}  f6 {[%clk 0:01:23]} 28. Rg3 {[%clk 0:02:19]}  Kf7 {[%clk 0:01:16]} 29. h5 {[%clk 0:02:18]}  Rh8 {[%clk 0:01:15]} 30. Rh3 {[%clk 0:02:17]}  Rxh5 {[%clk 0:01:06]} 31. Rxh5 {[%clk 0:02:17]}  gxh5 {[%clk 0:01:07]} 32. Qf5 {[%clk 0:02:17]}  Rg8 {[%clk 0:00:55]} 33. Rf3 {[%clk 0:02:05]}  Rg5 {[%clk 0:00:50]} 34. Qxg5 {[%clk 0:02:04]} 1-0


[Site "https://www.chess.com"]

[Event "Titled Tuesday Blitz May 10 Late 2022"]
[White "Paravyan, David"]
[Black "Khripachenko, Alexander"]
[WhiteFideId "4194985"]
[BlackFideId "54184975"]
[WhiteElo "2569"]
[BlackElo "2138"]
[Result "1-0"]
[Round "05"]
[TimeControl "180+1"]
[Date "2022.05.10"]
[WhiteClock "0:00:06"]
[BlackClock "0:00:05"]

1. e4 {[%clk 0:03:00]}  c6 {[%clk 0:03:00]} 2. d4 {[%clk 0:02:57]}  d5 {[%clk 0:03:00]} 3. e5 {[%clk 0:02:57]}  Bf5 {[%clk 0:03:00]} 4. Nf3 {[%clk 0:02:57]}  e6 {[%clk 0:03:00]} 5. Be2 {[%clk 0:02:58]}  Nd7 {[%clk 0:03:00]} 6. O-O {[%clk 0:02:58]}  a6 {[%clk 0:03:00]} 7. Nbd2 {[%clk 0:02:54]}  h6 {[%clk 0:02:52]} 8. Nb3 {[%clk 0:02:54]}  c5 {[%clk 0:02:50]} 9. dxc5 {[%clk 0:02:53]}  Bxc5 {[%clk 0:02:50]} 10. Nxc5 {[%clk 0:02:53]}  Nxc5 {[%clk 0:02:51]} 11. Be3 {[%clk 0:02:52]}  Rc8 {[%clk 0:02:50]} 12. c4 {[%clk 0:02:50]}  Ne7 {[%clk 0:02:49]} 13. Rc1 {[%clk 0:02:48]}  Nd7 {[%clk 0:02:23]} 14. Qb3 {[%clk 0:02:42]}  Rb8 {[%clk 0:02:15]} 15. Ba7 {[%clk 0:02:36]}  Ra8 {[%clk 0:02:15]} 16. Qxb7 {[%clk 0:02:26]}  O-O {[%clk 0:02:13]} 17. Bd4 {[%clk 0:02:21]}  Rb8 {[%clk 0:01:58]} 18. Qxa6 {[%clk 0:02:20]}  Ra8 {[%clk 0:01:59]} 19. Qd6 {[%clk 0:02:19]}  Rxa2 {[%clk 0:01:54]} 20. Ra1 {[%clk 0:02:05]}  Rxa1 {[%clk 0:01:44]} 21. Rxa1 {[%clk 0:02:06]}  dxc4 {[%clk 0:01:44]} 22. Bxc4 {[%clk 0:02:01]}  Ng6 {[%clk 0:01:42]} 23. Bb5 {[%clk 0:01:50]}  Nb8 {[%clk 0:01:17]} 24. Qxd8 {[%clk 0:01:29]}  Rxd8 {[%clk 0:01:18]} 25. Bc3 {[%clk 0:01:22]}  Be4 {[%clk 0:01:17]} 26. Nd2 {[%clk 0:01:15]}  Bd5 {[%clk 0:01:14]} 27. g3 {[%clk 0:01:05]}  Nc6 {[%clk 0:01:13]} 28. f4 {[%clk 0:00:55]}  Nge7 {[%clk 0:01:11]} 29. Kf2 {[%clk 0:00:52]}  g5 {[%clk 0:01:07]} 30. Nf1 {[%clk 0:00:45]}  Rb8 {[%clk 0:01:00]} 31. Bd3 {[%clk 0:00:40]}  gxf4 {[%clk 0:00:43]} 32. gxf4 {[%clk 0:00:41]}  Ng6 {[%clk 0:00:43]} 33. Bxg6 {[%clk 0:00:41]}  fxg6 {[%clk 0:00:44]} 34. Ne3 {[%clk 0:00:41]}  Be4 {[%clk 0:00:43]} 35. Rd1 {[%clk 0:00:39]}  Ne7 {[%clk 0:00:33]} 36. Ng4 {[%clk 0:00:37]}  Nd5 {[%clk 0:00:24]} 37. Nxh6+ {[%clk 0:00:30]}  Kg7 {[%clk 0:00:24]} 38. Ng4 {[%clk 0:00:30]}  Rf8 {[%clk 0:00:22]} 39. Nf6 {[%clk 0:00:29]}  Bf5 {[%clk 0:00:09]} 40. Nxd5 {[%clk 0:00:27]}  exd5 {[%clk 0:00:10]} 41. Rxd5 {[%clk 0:00:19]}  Kf7 {[%clk 0:00:10]} 42. Rd6 {[%clk 0:00:19]}  Ra8 {[%clk 0:00:09]} 43. Rf6+ {[%clk 0:00:18]}  Ke7 {[%clk 0:00:09]} 44. Bb4+ {[%clk 0:00:18]}  Kd7 {[%clk 0:00:10]} 45. Rd6+ {[%clk 0:00:18]}  Kc7 {[%clk 0:00:10]} 46. Rd4 {[%clk 0:00:15]}  Ra1 {[%clk 0:00:10]} 47. Kg2 {[%clk 0:00:08]}  Rc1 {[%clk 0:00:08]} 48. Bc3 {[%clk 0:00:08]}  Ra1 {[%clk 0:00:05]} 49. Rd2 {[%clk 0:00:08]}  Rb1 {[%clk 0:00:03]} 50. Kg3 {[%clk 0:00:08]}  Rg1+ {[%clk 0:00:03]} 51. Rg2 {[%clk 0:00:08]}  Rb1 {[%clk 0:00:03]} 52. Kh4 {[%clk 0:00:08]}  Rd1 {[%clk 0:00:03]} 53. Kg5 {[%clk 0:00:09]}  Kd7 {[%clk 0:00:03]} 54. h4 {[%clk 0:00:09]}  Rh1 {[%clk 0:00:04]} 55. Rd2+ {[%clk 0:00:07]}  Ke7 {[%clk 0:00:04]} 56. Bb4+ {[%clk 0:00:07]}  Kf7 {[%clk 0:00:05]} 57. Bc5 {[%clk 0:00:05]}  Rh3 {[%clk 0:00:04]} 58. Rd6 {[%clk 0:00:05]}  Rg3+ {[%clk 0:00:04]} 59. Kh6 {[%clk 0:00:05]}  Rh3 {[%clk 0:00:04]} 60. Rf6+ {[%clk 0:00:05]}  Ke8 {[%clk 0:00:05]} 61. e6 {[%clk 0:00:04]}  Rxh4+ {[%clk 0:00:05]} 62. Kg7 {[%clk 0:00:04]}  Bxe6 {[%clk 0:00:04]} 63. Rxe6+ {[%clk 0:00:05]}  Kd7 {[%clk 0:00:05]} 64. Rf6 {[%clk 0:00:05]}  Rh2 {[%clk 0:00:05]} 65. Bd4 {[%clk 0:00:05]}  Rd2 {[%clk 0:00:05]} 66. Bc3 {[%clk 0:00:06]} 1-0


[Site "https://www.chess.com"]

[Event "Titled Tuesday Blitz May 10 Late 2022"]
[White "Petrovskyi, Vadym"]
[Black "Mortazavi, Ali"]
[WhiteFideId "14165210"]
[BlackFideId "401323"]
[WhiteElo "2400"]
[BlackElo "2339"]
[Result "1-0"]
[Round "05"]
[TimeControl "180+1"]
[Date "2022.05.10"]
[WhiteClock "0:00:26"]
[BlackClock "0:00:04"]

1. e4 {[%clk 0:02:44]}  c6 {[%clk 0:02:59]} 2. d4 {[%clk 0:02:43]}  d5 {[%clk 0:02:59]} 3. Nc3 {[%clk 0:02:43]}  dxe4 {[%clk 0:02:59]} 4. Nxe4 {[%clk 0:02:44]}  Nf6 {[%clk 0:02:59]} 5. Nxf6+ {[%clk 0:02:44]}  exf6 {[%clk 0:03:00]} 6. c3 {[%clk 0:02:44]}  Bd6 {[%clk 0:03:01]} 7. Bd3 {[%clk 0:02:44]}  O-O {[%clk 0:03:02]} 8. Ne2 {[%clk 0:02:44]}  Re8 {[%clk 0:03:02]} 9. Qc2 {[%clk 0:02:45]}  h5 {[%clk 0:03:02]} 10. Be3 {[%clk 0:02:45]}  Nd7 {[%clk 0:03:02]} 11. Ng3 {[%clk 0:02:45]}  Nf8 {[%clk 0:03:03]} 12. Nxh5 {[%clk 0:02:45]}  Ne6 {[%clk 0:02:45]} 13. O-O {[%clk 0:02:43]}  Qa5 {[%clk 0:02:31]} 14. Ng3 {[%clk 0:02:39]}  Bd7 {[%clk 0:02:22]} 15. Nf5 {[%clk 0:02:35]}  Bf8 {[%clk 0:02:22]} 16. b4 {[%clk 0:02:34]}  Qc7 {[%clk 0:02:19]} 17. Qd2 {[%clk 0:02:34]}  a5 {[%clk 0:02:16]} 18. a3 {[%clk 0:02:30]}  b5 {[%clk 0:02:09]} 19. Ng3 {[%clk 0:02:19]}  Bd6 {[%clk 0:02:04]} 20. f4 {[%clk 0:02:15]}  axb4 {[%clk 0:02:02]} 21. cxb4 {[%clk 0:02:16]}  Qd8 {[%clk 0:01:51]} 22. Ne4 {[%clk 0:02:05]}  Bf8 {[%clk 0:01:50]} 23. Nc5 {[%clk 0:01:54]}  Nc7 {[%clk 0:01:46]} 24. f5 {[%clk 0:01:48]}  Nd5 {[%clk 0:01:39]} 25. Bf4 {[%clk 0:01:49]}  Bc8 {[%clk 0:01:33]} 26. Bc2 {[%clk 0:01:28]}  Nb6 {[%clk 0:01:31]} 27. Bb3 {[%clk 0:01:25]}  Bxf5 {[%clk 0:01:19]} 28. Bc7 {[%clk 0:01:19]}  Qxc7 {[%clk 0:01:17]} 29. Rxf5 {[%clk 0:01:19]}  Rad8 {[%clk 0:01:08]} 30. Raf1 {[%clk 0:01:16]}  Nc4 {[%clk 0:00:55]} 31. Bxc4 {[%clk 0:01:08]}  bxc4 {[%clk 0:00:56]} 32. Qc3 {[%clk 0:01:08]}  Qd6 {[%clk 0:00:46]} 33. R5f4 {[%clk 0:00:55]}  Qd5 {[%clk 0:00:42]} 34. Nb7 {[%clk 0:00:54]}  Re2 {[%clk 0:00:36]} 35. Qh3 {[%clk 0:00:45]}  g5 {[%clk 0:00:21]} 36. Nxd8 {[%clk 0:00:40]}  gxf4 {[%clk 0:00:21]} 37. Qg4+ {[%clk 0:00:39]}  Bg7 {[%clk 0:00:19]} 38. Qxe2 {[%clk 0:00:39]}  Qxd4+ {[%clk 0:00:18]} 39. Qf2 {[%clk 0:00:39]}  Qxd8 {[%clk 0:00:19]} 40. Qxf4 {[%clk 0:00:39]}  c3 {[%clk 0:00:18]} 41. Qg4 {[%clk 0:00:32]}  Qd2 {[%clk 0:00:15]} 42. Rd1 {[%clk 0:00:30]}  Qe3+ {[%clk 0:00:10]} 43. Kf1 {[%clk 0:00:31]}  f5 {[%clk 0:00:04]} 44. Rd8+ {[%clk 0:00:28]}  Kh7 {[%clk 0:00:04]} 45. Qh5+ {[%clk 0:00:27]}  Bh6 {[%clk 0:00:05]} 46. Qxf7+ {[%clk 0:00:27]}  Bg7 {[%clk 0:00:06]} 47. Qh5+ {[%clk 0:00:27]}  Qh6 {[%clk 0:00:06]} 48. Qxf5+ {[%clk 0:00:26]}  Qg6 {[%clk 0:00:06]} 49. Qxg6+ {[%clk 0:00:26]}  Kxg6 {[%clk 0:00:07]} 50. Ke1 {[%clk 0:00:26]}  Bh6 {[%clk 0:00:05]} 51. Rd6+ {[%clk 0:00:24]}  Kh5 {[%clk 0:00:04]} 52. Rxc6 {[%clk 0:00:25]}  Bd2+ {[%clk 0:00:03]} 53. Ke2 {[%clk 0:00:25]}  Kg4 {[%clk 0:00:04]} 54. Kd3 {[%clk 0:00:25]}  Be1 {[%clk 0:00:04]} 55. Rxc3 {[%clk 0:00:26]} 1-0


[Site "https://www.chess.com"]

[Event "Titled Tuesday Blitz May 10 Late 2022"]
[White "Piliczewski, Bogusz"]
[Black "Pesotskiy, Mikhail"]
[WhiteFideId "1104144"]
[BlackFideId "34164453"]
[WhiteElo "1896"]
[BlackElo "2010"]
[Result "0-1"]
[Round "05"]
[TimeControl "180+1"]
[Date "2022.05.11"]
[WhiteClock "0:00:03"]
[BlackClock "0:02:30"]

1. d4 {[%clk 0:02:55]}  Nf6 {[%clk 0:02:59]} 2. Nf3 {[%clk 0:02:54]}  c5 {[%clk 0:02:59]} 3. c3 {[%clk 0:02:53]}  b6 {[%clk 0:02:59]} 4. Bf4 {[%clk 0:02:49]}  Bb7 {[%clk 0:02:59]} 5. e3 {[%clk 0:02:50]}  d6 {[%clk 0:02:59]} 6. h3 {[%clk 0:02:47]}  g6 {[%clk 0:02:59]} 7. Be2 {[%clk 0:02:46]}  Bg7 {[%clk 0:03:00]} 8. O-O {[%clk 0:02:45]}  O-O {[%clk 0:03:00]} 9. Nbd2 {[%clk 0:02:42]}  Nbd7 {[%clk 0:03:01]} 10. Bh2 {[%clk 0:02:33]}  Re8 {[%clk 0:02:55]} 11. Rc1 {[%clk 0:02:15]}  Qc7 {[%clk 0:02:52]} 12. a3 {[%clk 0:02:07]}  Rac8 {[%clk 0:02:51]} 13. b4 {[%clk 0:02:03]}  Qb8 {[%clk 0:02:51]} 14. Qb3 {[%clk 0:00:43]}  Qa8 {[%clk 0:02:40]} 15. Rfd1 {[%clk 0:00:41]}  Rc7 {[%clk 0:02:39]} 16. bxc5 {[%clk 0:00:35]}  bxc5 {[%clk 0:02:40]} 17. Ng5 {[%clk 0:00:30]}  Bd5 {[%clk 0:02:36]} 18. c4 {[%clk 0:00:28]}  Bxg2 {[%clk 0:02:28]} 19. f3 {[%clk 0:00:18]}  h6 {[%clk 0:02:29]} 20. Nxf7 {[%clk 0:00:12]}  Bxh3 {[%clk 0:02:29]} 21. Nxd6 {[%clk 0:00:04]}  exd6 {[%clk 0:02:29]} 22. Bxd6 {[%clk 0:00:03]}  Rc6 {[%clk 0:02:30]} 0-1


[Site "https://www.chess.com"]

[Event "Titled Tuesday Blitz May 10 Late 2022"]
[White "Plotnikov, Pavel"]
[Black "Kanyamarala, Trisha"]
[WhiteFideId "4170342"]
[BlackFideId "45004722"]
[WhiteElo "2298"]
[BlackElo "2134"]
[Result "1-0"]
[Round "05"]
[TimeControl "180+1"]
[Date "2022.05.11"]
[WhiteClock "0:00:31"]
[BlackClock "0:00:10"]

1. e4 {[%clk 0:03:00]}  c5 {[%clk 0:02:58]} 2. Nf3 {[%clk 0:02:59]}  Nc6 {[%clk 0:02:53]} 3. Bb5 {[%clk 0:02:59]}  g6 {[%clk 0:02:51]} 4. O-O {[%clk 0:02:58]}  Bg7 {[%clk 0:02:51]} 5. Re1 {[%clk 0:02:58]}  e6 {[%clk 0:02:49]} 6. e5 {[%clk 0:02:50]}  Nge7 {[%clk 0:02:44]} 7. d3 {[%clk 0:02:48]}  d6 {[%clk 0:02:44]} 8. Bf4 {[%clk 0:02:38]}  Nd5 {[%clk 0:02:31]} 9. Bg3 {[%clk 0:02:36]}  dxe5 {[%clk 0:02:28]} 10. Nxe5 {[%clk 0:02:34]}  Bd7 {[%clk 0:02:20]} 11. Bxc6 {[%clk 0:02:32]}  bxc6 {[%clk 0:02:15]} 12. Nd2 {[%clk 0:02:30]}  O-O {[%clk 0:02:14]} 13. Ne4 {[%clk 0:02:28]}  Qe7 {[%clk 0:02:03]} 14. Nxd7 {[%clk 0:02:19]}  Qxd7 {[%clk 0:02:02]} 15. Nxc5 {[%clk 0:02:19]}  Qd8 {[%clk 0:01:56]} 16. d4 {[%clk 0:02:15]}  Re8 {[%clk 0:01:44]} 17. c3 {[%clk 0:02:12]}  Nb6 {[%clk 0:01:41]} 18. Qf3 {[%clk 0:02:07]}  Qd5 {[%clk 0:01:30]} 19. Ne4 {[%clk 0:01:58]}  f5 {[%clk 0:01:24]} 20. Nd2 {[%clk 0:01:56]}  Rad8 {[%clk 0:01:18]} 21. Be5 {[%clk 0:01:50]}  Bh6 {[%clk 0:01:07]} 22. Qxd5 {[%clk 0:01:35]}  Rxd5 {[%clk 0:01:02]} 23. Nb3 {[%clk 0:01:34]}  Nc4 {[%clk 0:01:01]} 24. Re2 {[%clk 0:01:33]}  Red8 {[%clk 0:00:59]} 25. Rae1 {[%clk 0:01:31]}  Kf7 {[%clk 0:00:47]} 26. Nc5 {[%clk 0:01:27]}  Re8 {[%clk 0:00:29]} 27. g3 {[%clk 0:01:20]}  Bd2 {[%clk 0:00:26]} 28. Rd1 {[%clk 0:01:14]}  Bh6 {[%clk 0:00:24]} 29. f4 {[%clk 0:01:08]}  Red8 {[%clk 0:00:22]} 30. Rde1 {[%clk 0:01:02]}  Bf8 {[%clk 0:00:19]} 31. b4 {[%clk 0:01:01]}  a5 {[%clk 0:00:17]} 32. a4 {[%clk 0:00:53]}  axb4 {[%clk 0:00:17]} 33. cxb4 {[%clk 0:00:54]}  Ra8 {[%clk 0:00:17]} 34. Ra2 {[%clk 0:00:42]}  Bxc5 {[%clk 0:00:15]} 35. bxc5 {[%clk 0:00:42]}  Rd7 {[%clk 0:00:14]} 36. Rb1 {[%clk 0:00:42]}  Rda7 {[%clk 0:00:13]} 37. Rb4 {[%clk 0:00:38]}  Ne3 {[%clk 0:00:13]} 38. h3 {[%clk 0:00:34]}  Nd5 {[%clk 0:00:13]} 39. Rb8 {[%clk 0:00:33]}  Rxa4 {[%clk 0:00:11]} 40. Rxa8 {[%clk 0:00:32]}  Rc4 {[%clk 0:00:11]} 41. R2a7+ {[%clk 0:00:31]}  Ne7 {[%clk 0:00:10]} 42. Bd6 {[%clk 0:00:31]} 1-0


[Site "https://www.chess.com"]

[Event "Titled Tuesday Blitz May 10 Late 2022"]
[White "Remolar Gallen, Jose"]
[Black "Papp, Levente"]
[WhiteFideId "2215187"]
[BlackFideId "751243"]
[WhiteElo "2205"]
[BlackElo "2308"]
[Result "0-1"]
[Round "05"]
[TimeControl "180+1"]
[Date "2022.05.11"]
[WhiteClock "0:00:01"]
[BlackClock "0:00:49"]

1. d4 {[%clk 0:03:00]}  e6 {[%clk 0:02:59]} 2. Nf3 {[%clk 0:03:00]}  d5 {[%clk 0:02:58]} 3. e3 {[%clk 0:02:59]}  Nf6 {[%clk 0:02:58]} 4. Bd3 {[%clk 0:02:59]}  c6 {[%clk 0:02:56]} 5. O-O {[%clk 0:02:57]}  Be7 {[%clk 0:02:54]} 6. Nbd2 {[%clk 0:02:58]}  O-O {[%clk 0:02:54]} 7. b3 {[%clk 0:02:58]}  Nbd7 {[%clk 0:02:52]} 8. Bb2 {[%clk 0:02:58]}  a5 {[%clk 0:02:50]} 9. a3 {[%clk 0:02:57]}  a4 {[%clk 0:02:49]} 10. b4 {[%clk 0:02:55]}  b5 {[%clk 0:02:48]} 11. Qe2 {[%clk 0:02:51]}  Nb6 {[%clk 0:02:45]} 12. e4 {[%clk 0:02:42]}  Nc4 {[%clk 0:02:45]} 13. Bc3 {[%clk 0:02:36]}  dxe4 {[%clk 0:02:38]} 14. Nxe4 {[%clk 0:02:35]}  Nd5 {[%clk 0:02:36]} 15. Be1 {[%clk 0:02:07]}  Nf4 {[%clk 0:02:34]} 16. Qd1 {[%clk 0:02:04]}  Nxd3 {[%clk 0:02:33]} 17. cxd3 {[%clk 0:02:00]}  Nd6 {[%clk 0:02:31]} 18. Nc5 {[%clk 0:01:59]}  Nf5 {[%clk 0:02:30]} 19. Bc3 {[%clk 0:01:59]}  Bf6 {[%clk 0:02:30]} 20. Ne5 {[%clk 0:01:57]}  Nxd4 {[%clk 0:02:24]} 21. Re1 {[%clk 0:01:21]}  Qd5 {[%clk 0:02:08]} 22. f4 {[%clk 0:00:53]}  Be7 {[%clk 0:01:58]} 23. Ne4 {[%clk 0:00:34]}  Nb3 {[%clk 0:01:48]} 24. Ra2 {[%clk 0:00:30]}  c5 {[%clk 0:01:44]} 25. Ng4 {[%clk 0:00:16]}  f5 {[%clk 0:01:35]} 26. Ne3 {[%clk 0:00:10]}  Qc6 {[%clk 0:01:30]} 27. Nxc5 {[%clk 0:00:10]}  Nxc5 {[%clk 0:01:29]} 28. bxc5 {[%clk 0:00:10]}  Bxc5 {[%clk 0:01:26]} 29. Rc2 {[%clk 0:00:10]}  Qd7 {[%clk 0:01:16]} 30. d4 {[%clk 0:00:10]}  Bxa3 {[%clk 0:01:16]} 31. d5 {[%clk 0:00:06]}  Bb7 {[%clk 0:01:14]} 32. Qd4 {[%clk 0:00:06]}  exd5 {[%clk 0:01:11]} 33. g4 {[%clk 0:00:03]}  Rac8 {[%clk 0:00:54]} 34. gxf5 {[%clk 0:00:03]}  Bc5 {[%clk 0:00:53]} 35. Qe5 {[%clk 0:00:04]}  d4 {[%clk 0:00:52]} 36. Ba1 {[%clk 0:00:01]}  Rfe8 {[%clk 0:00:51]} 37. Rxc5 {[%clk 0:00:01]}  Rxe5 {[%clk 0:00:50]} 38. Rxe5 {[%clk 0:00:01]}  dxe3 {[%clk 0:00:50]} 39. R5xe3 {[%clk 0:00:01]}  Qd5 {[%clk 0:00:49]} 40. Rg3 {[%clk 0:00:01]}  Qh1+ {[%clk 0:00:49]} 41. Kf2 {[%clk 0:00:02]}  Rc2+ {[%clk 0:00:49]} 42. Ke3 {[%clk 0:00:01]}  Qxe1+ {[%clk 0:00:49]} 0-1


[Site "https://www.chess.com"]

[Event "Titled Tuesday Blitz May 10 Late 2022"]
[White "Sailer, Mike"]
[Black "Sarkar, Justin"]
[WhiteFideId "2012901"]
[BlackFideId "2010011"]
[WhiteElo "2109"]
[BlackElo "2020"]
[Result "0-1"]
[Round "05"]
[TimeControl "180+1"]
[Date "2022.05.11"]
[WhiteClock "0:00:01"]
[BlackClock "0:00:06"]

1. Nf3 {[%clk 0:02:59]}  g6 {[%clk 0:02:54]} 2. d4 {[%clk 0:02:58]}  d6 {[%clk 0:02:44]} 3. Bf4 {[%clk 0:02:57]}  Bg7 {[%clk 0:02:40]} 4. e3 {[%clk 0:02:58]}  f5 {[%clk 0:02:34]} 5. Be2 {[%clk 0:02:54]}  Nf6 {[%clk 0:02:32]} 6. h3 {[%clk 0:02:46]}  O-O {[%clk 0:02:27]} 7. c4 {[%clk 0:02:46]}  e6 {[%clk 0:02:21]} 8. Nc3 {[%clk 0:02:46]}  Qe7 {[%clk 0:02:18]} 9. O-O {[%clk 0:02:41]}  Nbd7 {[%clk 0:02:13]} 10. b4 {[%clk 0:02:38]}  e5 {[%clk 0:02:11]} 11. dxe5 {[%clk 0:02:33]}  dxe5 {[%clk 0:02:09]} 12. Bg5 {[%clk 0:02:33]}  c6 {[%clk 0:01:57]} 13. c5 {[%clk 0:02:27]}  h6 {[%clk 0:01:52]} 14. Bc4+ {[%clk 0:02:25]}  Kh7 {[%clk 0:01:49]} 15. Bxf6 {[%clk 0:02:24]}  Bxf6 {[%clk 0:01:35]} 16. Qc2 {[%clk 0:02:23]}  e4 {[%clk 0:01:30]} 17. Nd4 {[%clk 0:02:16]}  Ne5 {[%clk 0:01:27]} 18. Be2 {[%clk 0:01:58]}  h5 {[%clk 0:01:23]} 19. Rad1 {[%clk 0:01:56]}  Bd7 {[%clk 0:01:22]} 20. Nb3 {[%clk 0:01:38]}  Rad8 {[%clk 0:01:17]} 21. Na5 {[%clk 0:01:36]}  Bc8 {[%clk 0:01:14]} 22. Nc4 {[%clk 0:01:35]}  Nxc4 {[%clk 0:01:10]} 23. Bxc4 {[%clk 0:01:35]}  Qe5 {[%clk 0:01:07]} 24. Ne2 {[%clk 0:01:32]}  h4 {[%clk 0:01:05]} 25. Rxd8 {[%clk 0:01:06]}  Bxd8 {[%clk 0:01:03]} 26. Qc3 {[%clk 0:00:46]}  Qxc3 {[%clk 0:01:02]} 27. Nxc3 {[%clk 0:00:46]}  Bf6 {[%clk 0:01:01]} 28. Ne2 {[%clk 0:00:46]}  Rd8 {[%clk 0:01:01]} 29. Rb1 {[%clk 0:00:35]}  a6 {[%clk 0:00:45]} 30. Nf4 {[%clk 0:00:34]}  Rd2 {[%clk 0:00:42]} 31. a4 {[%clk 0:00:24]}  g5 {[%clk 0:00:36]} 32. Be6 {[%clk 0:00:07]}  Bxe6 {[%clk 0:00:32]} 33. Nxe6 {[%clk 0:00:07]}  Kg6 {[%clk 0:00:29]} 34. b5 {[%clk 0:00:07]}  axb5 {[%clk 0:00:27]} 35. axb5 {[%clk 0:00:08]}  Kf7 {[%clk 0:00:24]} 36. Nc7 {[%clk 0:00:07]}  Rc2 {[%clk 0:00:18]} 37. bxc6 {[%clk 0:00:07]}  bxc6 {[%clk 0:00:18]} 38. Na6 {[%clk 0:00:08]}  Be7 {[%clk 0:00:16]} 39. Nb8 {[%clk 0:00:06]}  Rxc5 {[%clk 0:00:14]} 40. Nd7 {[%clk 0:00:07]}  Rd5 {[%clk 0:00:12]} 41. Nb6 {[%clk 0:00:07]}  Rb5 {[%clk 0:00:12]} 42. Rxb5 {[%clk 0:00:06]}  cxb5 {[%clk 0:00:12]} 43. Kf1 {[%clk 0:00:07]}  Bc5 {[%clk 0:00:11]} 44. Nd5 {[%clk 0:00:07]}  b4 {[%clk 0:00:08]} 45. Ke2 {[%clk 0:00:07]}  Ke6 {[%clk 0:00:07]} 46. Nc7+ {[%clk 0:00:08]}  Ke5 {[%clk 0:00:07]} 47. Na6 {[%clk 0:00:08]}  Bd6 {[%clk 0:00:06]} 48. Kd2 {[%clk 0:00:08]}  Kd5 {[%clk 0:00:07]} 49. Kc2 {[%clk 0:00:06]}  Kc4 {[%clk 0:00:07]} 50. f3 {[%clk 0:00:06]}  Kb5 {[%clk 0:00:07]} 51. Nxb4 {[%clk 0:00:06]}  Kxb4 {[%clk 0:00:06]} 52. Kd2 {[%clk 0:00:03]}  Kc4 {[%clk 0:00:06]} 53. Ke2 {[%clk 0:00:03]}  Kc3 {[%clk 0:00:06]} 54. fxe4 {[%clk 0:00:01]}  fxe4 {[%clk 0:00:06]} 0-1


[Site "https://www.chess.com"]